[Event "4NCL Div 1 2018-19"]
[Site "Daventry"]
[Date "2019.01.12"]
[Round "3"]
[White "Gordon, Stephen J"]
[Black "Cornette, Matthieu"]
[Result "1/2-1/2"]
[ECO "D37"]
[WhiteElo "2544"]
[BlackElo "2587"]
[Annotator "ChessBase"]
[PlyCount "26"]
[EventDate "2019.01.12"]
[EventCountry "GBR"]
[SourceTitle "playchess.com"]
[Source "ChessBase"]
[SourceQuality "1"]
[TimeControl "40"]

1. Nf3 {[%emt 0:00:00]} e6 {[%emt 0:00:00]} 2. c4 {[%emt 0:00:00]} d5 {[%emt 0:00:00]} 3. d4 {[%emt 0:00:00]} a6 {[%emt 0:00:00]} 4. cxd5 {[%emt 0:00:00]} exd5 {[%emt 0:00:00]} 5. Nc3 {[%emt 0:00:00]} Nf6 {[%emt 0:00:00]} 6. Bg5 {[%emt 0:00:00]} Be6 {[%emt 0:00:00]} 7. e3 {[%emt 0:00:00]} Nbd7 {[%emt 0:00:00]} 8. Bd3 {[%emt 0:00:00]} h6 {[%emt 0:00:00]} 9. Bh4 {[%emt 0:00:00]} g5 {[%emt 0:00:00]} 10. Bg3 {[%emt 0:00:00]} Nh5 {[%emt 0:00:00]} 11. Be5 {[%emt 0:00:00]} Nhf6 {[%emt 0:00:00]} 12. Bg3 {[%emt 0:00:00]} Nh5 {[%emt 0:00:00]} 13. Be5 {[%emt 0:00:00]} Nhf6 {[%emt 0:00:00]} 1/2-1/2

[Event "4NCL Div 1 2018-19"]
[Site "Daventry"]
[Date "2019.01.12"]
[Round "3"]
[White "Fodor, Tamas Jr."]
[Black "Rendle, Thomas E"]
[Result "1/2-1/2"]
[ECO "A88"]
[WhiteElo "2520"]
[BlackElo "2373"]
[Annotator "ChessBase"]
[PlyCount "48"]
[EventDate "2019.01.12"]
[EventCountry "GBR"]
[SourceTitle "playchess.com"]
[Source "ChessBase"]
[SourceQuality "1"]
[TimeControl "40"]

1. Nf3 {[%emt 0:00:00]} f5 {[%emt 0:00:00]} 2. c4 {[%emt 0:00:00]} Nf6 {[%emt 0:00:00]} 3. Nc3 {[%emt 0:00:00]} d6 {[%emt 0:00:00]} 4. d4 {[%emt 0:00:00]} g6 {[%emt 0:00:00]} 5. g3 {[%emt 0:00:00]} Bg7 {[%emt 0:00:00]} 6. Bg2 {[%emt 0:00:00]} O-O {[%emt 0:00:00]} 7. O-O {[%emt 0:00:00]} c6 {[%emt 0:00:00]} 8. b3 {[%emt 0:00:00]} Na6 {[%emt 0:00:00]} 9. Bb2 {[%emt 0:00:00]} Rb8 {[%emt 0:00:00]} 10. Rc1 {[%emt 0:00:00]} Bd7 {[%emt 0:00:00]} 11. d5 {[%emt 0:00:00]} c5 12. a4 {[%emt 0:00:00]} h6 {[%emt 0:00:00]} 13. Ne1 {[%emt 0:00:00]} g5 {[%emt 0:00:00]} 14. Nd3 {[%emt 0:00:00]} Nc7 {[%emt 0:00:00]} 15. Qd2 {[%emt 0:00:00]} Qe8 {[%emt 0:00:00]} 16. e4 {[%emt 0:00:00]} Qh5 {[%emt 0:00:00]} 17. Rce1 {[%emt 0:00:00]} Rbe8 {[%emt 0:00:00]} 18. Qe2 {[%emt 0:00:00]} Qxe2 {[%emt 0:00:00]} 19. Rxe2 {[%emt 0:00:00]} e5 {[%emt 0:00:00]} 20. dxe6 {[%emt 0:00:00]} Nxe6 {[%emt 0:00:00]} 21. exf5 {[%emt 0:00:00]} Nd4 {[%emt 0:00:00]} 22. Rxe8 {[%emt 0:00:00]} Rxe8 {[%emt 0:00:00]} 23. Nb5 {[%emt 0:00:00]} Nxb5 {[%emt 0:00:00]} 24. axb5 {[%emt 0:00:00]} Bxf5 {[%emt 0:00:00]} 1/2-1/2

[Event "4NCL Div 1 2018-19"]
[Site "Daventry"]
[Date "2019.01.12"]
[Round "3"]
[White "Speelman, Jon S"]
[Black "Gourlay, Iain"]
[Result "1/2-1/2"]
[ECO "D02"]
[WhiteElo "2509"]
[BlackElo "2351"]
[Annotator "ChessBase"]
[PlyCount "52"]
[EventDate "2019.01.12"]
[EventCountry "GBR"]
[SourceTitle "playchess.com"]
[Source "ChessBase"]
[SourceQuality "1"]
[TimeControl "40"]

1. Nf3 {[%emt 0:00:00]} d5 {[%emt 0:00:20]} 2. g3 {[%emt 0:00:12]} Nf6 {[%emt 0:00:00]} 3. Bg2 {[%emt 0:01:04]} c6 {[%emt 0:00:00]} 4. O-O {[%emt 0:00:00]} Bg4 {[%emt 0:00:00]} 5. d4 {[%emt 0:00:00]} Nbd7 {[%emt 0:00:00]} 6. Nbd2 {[%emt 0:00:00]} e6 {[%emt 0:00:00]} 7. Re1 {[%emt 0:00:00]} Be7 {[%emt 0:00:00]} 8. e4 {[%emt 0:00:00]} O-O {[%emt 0:00:00]} 9. c3 {[%emt 0:00:00]} c5 {[%emt 0:00:00]} 10. exd5 {[%emt 0:00:00]} Nxd5 {[%emt 0:00:00]} 11. Nc4 {[%emt 0:00:00]} Qc7 {[%emt 0:00:00]} 12. Ne3 {[%emt 0:00:00]} Nxe3 {[%emt 0:00:00]} 13. Bxe3 {[%emt 0:00:00]} Rad8 {[%emt 0:00:00]} 14. Qa4 {[%emt 0:00:00]} Bf5 {[%emt 0:00:00]} 15. Rad1 {[%emt 0:00:00]} c4 {[%emt 0:00:00]} 16. Nd2 {[%emt 0:00:00]} Nb6 {[%emt 0:00:00]} 17. Qxa7 {[%emt 0:00:00]} Nd5 {[%emt 0:00:00]} 18. Qa4 {[%emt 0:00:00]} b5 {[%emt 0:00:00]} 19. Qxb5 {[%emt 0:00:00]} Bd3 {[%emt 0:00:00]} 20. Bf4 {[%emt 0:00:00]} Nxf4 {[%emt 0:00:00]} 21. gxf4 {[%emt 0:00:00]} Rb8 {[%emt 0:00:00]} 22. Qc6 {[%emt 0:00:00]} Qxf4 {[%emt 0:00:00]} 23. b4 {[%emt 0:00:00]} cxb3 {[%emt 0:00:00]} 24. Nxb3 {[%emt 0:00:00]} Rfc8 {[%emt 0:00:00]} 25. Qf3 {[%emt 0:00:00]} Qxf3 {[%emt 0:00:00]} 26. Bxf3 {[%emt 0:00:00]} Bc2 {[%emt 0:00:00]} 1/2-1/2

[Event "4NCL Div 1 2018-19"]
[Site "Daventry"]
[Date "2019.01.12"]
[Round "3"]
[White "Hunt, Adam C"]
[Black "Fitzsimons, David"]
[Result "1-0"]
[ECO "B06"]
[WhiteElo "2401"]
[BlackElo "2301"]
[Annotator "NA"]
[PlyCount "107"]
[EventDate "2019.01.12"]
[EventCountry "GBR"]
[SourceTitle "playchess.com"]
[Source "ChessBase"]
[SourceQuality "1"]
[TimeControl "40"]

1. e4 {[%emt 0:00:00]} g6 {[%emt 0:00:00]} 2. d4 {[%emt 0:00:00]} Bg7 {[%emt 0:00:00]} 3. Nc3 {[%emt 0:00:00]} d5 {[%emt 0:00:00]} 4. e5 {[%emt 0:00:00]} f6 {[%emt 0:00:00]} 5. f4 {[%emt 0:00:00]} Nh6 {[%emt 0:00:00]} 6. Nf3 {[%emt 0:00:00]} O-O {[%emt 0:00:00]} 7. Be2 {[%emt 0:00:00]} Bg4 {[%emt 0:00:00]} 8. O-O {[%emt 0:00:00]} e6 {[%emt 0:00:00]} 9. Be3 {[%emt 0:00:00]} Nf5 {[%emt 0:00:00]} 10. Bf2 {[%emt 0:00:00]} Nd7 {[%emt 0:00:00]} 11. Ne1 {[%emt 0:00:00]} Bxe2 {[%emt 0:00:00]} 12. Nxe2 {[%emt 0:00:00]} fxe5 {[%emt 0:00:00]} 13. fxe5 {[%emt 0:00:00]} c5 {[%emt 0:00:00]} 14. c3 {[%emt 0:00:00]} cxd4 {[%emt 0:00:00]} 15. cxd4 {[%emt 0:00:00]} Bh6 {[%emt 0:00:00]} 16. Qd3 {[%emt 0:00:00]} Qb6 {[%emt 0:00:00]} 17. Rb1 {[%emt 0:00:00]} Rac8 {[%emt 0:00:00]} 18. Nc3 {[%emt 0:00:00]} Rc6 {[%emt 0:00:00]} 19. Nc2 {[%emt 0:00:00]} Rfc8 {[%emt 0:00:00]} 20. g4 {[%emt 0:00:00]} Ne7 {[%emt 0:00:00]} 21. Be3 {[%emt 0:00:00]} Nxe5 {[%emt 0:00:00]} 22. dxe5 {[%emt 0:00:00]} Bxe3+ {[%emt 0:00:00]} 23. Qxe3 {[%emt 0:00:00]} Qxe3+ {[%emt 0:00:00]} 24. Nxe3 {[%emt 0:00:00]} d4 {[%emt 0:00:00]} 25. Nb5 {[%emt 0:00:00]} dxe3 {[%emt 0:00:00]} 26. Nxa7 {[%emt 0:00:00]} Rc4 {[%emt 0:00:00]} 27. Nxc8 {[%emt 0:00:00]} Rxg4+ {[%emt 0:00:00]} 28. Kh1 {[%emt 0:00:00]} Nxc8 {[%emt 0:00:00]} 29. Rf3 {[%emt 0:00:00]} Re4 {[%emt 0:00:00]} 30. Re1 {[%emt 0:00:00]} e2 {[%emt 0:00:00]} 31. Rf2 {[%emt 0:00:00]} Nb6 {[%emt 0:00:00]} 32. Rexe2 {[%emt 0:00:00]} Ra4 {[%emt 0:00:00]} 33. b3 {[%emt 0:00:00]} Ra6 {[%emt 0:00:00]} 34. Rc2 {[%emt 0:00:00]} Nd5 {[%emt 0:00:00]} 35. Rc8+ {[%emt 0:00:00]} Kg7 {[%emt 0:00:00]} 36. Rb8 {[%emt 0:00:00]} b6 {[%emt 0:00:00]} 37. Rb7+ {[%emt 0:00:00]} Kh6 {[%emt 0:00:00]} 38. Kg2 {[%emt 0:00:00]} Ra5 {[%emt 0:00:00]} 39. Kg3 {[%emt 0:00:00]} g5 {[%emt 0:00:00]} 40. a4 {[%emt 0:00:00]} Rc5 {[%emt 0:00:00]} 41. Rd7 {[%emt 0:00:00]} Kg6 {[%emt 0:00:00]} 42. Rd6 {[%emt 0:00:00]} Rc3+ {[%emt 0:00:00]} 43. Rf3 {[%emt 0:00:00]} Rxf3+ {[%emt 0:00:00]} 44. Kxf3 {[%emt 0:00:00]} Kf5 {[%emt 0:00:00]} 45. b4 {[%emt 0:00:00]} Kxe5 {[%emt 0:00:00]} 46. Rc6 {[%emt 0:00:00]} Nxb4 {[%emt 0:00:00]} 47. Rxb6 {[%emt 0:00:00]} Nd5 {[%emt 0:00:00]} 48. Rb7 {[%emt 0:00:00]} Kd4 {[%emt 0:00:00]} 49. a5 {[%emt 0:00:00]} e5 {[%emt 0:00:00]} 50. a6 {[%emt 0:00:00]} e4+ {[%emt 0:00:00]} 51. Ke2 {[%emt 0:00:00]} Nf4+ {[%emt 0:00:00]} 52. Kf1 {[%emt 0:00:00]} e3 {[%emt 0:00:00]} 53. a7 {[%emt 0:00:00]} e2+ {[%emt 0:00:00]} 54. Kf2 {[%emt 0:00:00]} 1-0

[Event "4NCL Div 1 2018-19"]
[Site "Daventry"]
[Date "2019.01.12"]
[Round "3"]
[White "Pigott, John C"]
[Black "Moreby, James"]
[Result "1-0"]
[ECO "A13"]
[WhiteElo "2387"]
[BlackElo "2116"]
[Annotator "NA"]
[PlyCount "79"]
[EventDate "2019.01.12"]
[EventCountry "GBR"]
[SourceTitle "playchess.com"]
[Source "ChessBase"]
[SourceQuality "1"]
[TimeControl "40"]

1. c4 {[%emt 0:00:00]} e6 {[%emt 0:00:00]} 2. g3 {[%emt 0:00:00]} c5 {[%emt 0:00:00]} 3. Bg2 {[%emt 0:00:00]} Nc6 {[%emt 0:00:00]} 4. Nf3 {[%emt 0:00:00]} Nge7 {[%emt 0:00:00]} 5. O-O {[%emt 0:00:00]} g6 {[%emt 0:00:00]} 6. d4 {[%emt 0:00:00]} cxd4 {[%emt 0:00:00]} 7. Nxd4 {[%emt 0:00:00]} Bg7 {[%emt 0:00:00]} 8. Be3 {[%emt 0:00:00]} O-O {[%emt 0:00:00]} 9. Nc3 {[%emt 0:00:00]} d5 {[%emt 0:00:00]} 10. cxd5 {[%emt 0:00:00]} exd5 {[%emt 0:00:00]} 11. Qd2 {[%emt 0:00:00]} Be6 {[%emt 0:00:00]} 12. Rfd1 {[%emt 0:00:00]} Qd7 {[%emt 0:00:00]} 13. Nb3 {[%emt 0:00:00]} Rfd8 {[%emt 0:00:00]} 14. Bh6 {[%emt 0:00:00]} Bh8 {[%emt 0:00:00]} 15. Bg5 {[%emt 0:00:00]} b6 {[%emt 0:00:00]} 16. e4 {[%emt 0:00:00]} d4 {[%emt 0:00:00]} 17. Qf4 {[%emt 0:00:00]} Bg4 {[%emt 0:00:00]} 18. Bf3 {[%emt 0:00:00]} Bxf3 {[%emt 0:00:00]} 19. Qxf3 {[%emt 0:00:00]} f6 {[%emt 0:00:00]} 20. Bf4 {[%emt 0:00:00]} g5 {[%emt 0:00:00]} 21. Be3 {[%emt 0:00:00]} d3 {[%emt 0:00:00]} 22. Qh5 {[%emt 0:00:00]} Qe6 {[%emt 0:00:00]} 23. f4 {[%emt 0:00:00]} gxf4 {[%emt 0:00:00]} 24. gxf4 {[%emt 0:00:00]} f5 {[%emt 0:00:00]} 25. e5 {[%emt 0:00:00]} Rd7 {[%emt 0:00:00]} 26. Rd2 {[%emt 0:00:00]} Nd5 {[%emt 0:00:00]} 27. Nxd5 {[%emt 0:00:00]} Rxd5 {[%emt 0:00:00]} 28. Rg2+ {[%emt 0:00:00]} Bg7 {[%emt 0:00:00]} 29. Kf2 {[%emt 0:00:00]} Kh8 {[%emt 0:00:00]} 30. Rag1 {[%emt 0:00:00]} Rg8 {[%emt 0:00:00]} 31. Rg5 {[%emt 0:00:00]} Ne7 {[%emt 0:00:00]} 32. Nd4 {[%emt 0:00:00]} Qc8 {[%emt 0:00:00]} 33. Rc1 {[%emt 0:00:00]} Qd7 {[%emt 0:00:00]} 34. Nf3 {[%emt 0:00:00]} Qb5 {[%emt 0:00:00]} 35. Rc7 {[%emt 0:00:00]} Rd7 {[%emt 0:00:00]} 36. Rxd7 {[%emt 0:00:00]} Qxd7 {[%emt 0:00:00]} 37. Qf7 {[%emt 0:00:00]} h6 {[%emt 0:00:00]} 38. Rg1 {[%emt 0:00:00]} Kh7 {[%emt 0:00:00]} 39. Ng5+ {[%emt 0:00:00]} hxg5 {[%emt 0:00:00]} 40. Rxg5 {[%emt 0:00:00]} 1-0

[Event "4NCL Div 1 2018-19"]
[Site "Daventry"]
[Date "2019.01.12"]
[Round "3"]
[White "Milliet, Sophie"]
[Black "Matta, Francesca"]
[Result "1-0"]
[ECO "B41"]
[WhiteElo "2386"]
[BlackElo "1918"]
[Annotator "NA"]
[PlyCount "97"]
[EventDate "2019.01.12"]
[EventCountry "GBR"]
[SourceTitle "playchess.com"]
[Source "ChessBase"]
[SourceQuality "1"]
[TimeControl "40"]

1. e4 {[%emt 0:00:00]} c5 {[%emt 0:00:00]} 2. Nf3 {[%emt 0:00:00]} e6 {[%emt 0:00:00]} 3. d4 cxd4 {[%emt 0:00:00]} 4. Nxd4 {[%emt 0:00:00]} a6 {[%emt 0:00:00]} 5. c4 {[%emt 0:00:00]} Nf6 {[%emt 0:00:00]} 6. Nc3 {[%emt 0:00:00]} Qc7 {[%emt 0:00:00]} 7. Be2 {[%emt 0:00:00]} b6 {[%emt 0:00:00]} 8. O-O {[%emt 0:00:00]} Bb7 {[%emt 0:00:00]} 9. Qd3 {[%emt 0:00:00]} Be7 {[%emt 0:00:00]} 10. f4 {[%emt 0:00:00]} d6 {[%emt 0:00:00]} 11. f5 {[%emt 0:00:00]} e5 {[%emt 0:00:00]} 12. Nc2 {[%emt 0:00:00]} Nbd7 {[%emt 0:25:01]} 13. Ne3 {[%emt 0:00:00]} O-O {[%emt 0:00:00]} 14. Ned5 {[%emt 0:00:00]} Nxd5 {[%emt 0:00:00]} 15. exd5 {[%emt 0:00:00]} b5 {[%emt 0:00:00]} 16. cxb5 {[%emt 0:00:00]} axb5 {[%emt 0:00:00]} 17. Nxb5 {[%emt 0:00:00]} Qc5+ {[%emt 0:00:00]} 18. Be3 {[%emt 0:00:00]} Qxd5 {[%emt 0:00:00]} 19. Qxd5 {[%emt 0:00:00]} Bxd5 {[%emt 0:00:00]} 20. Nc7 {[%emt 0:00:00]} Ra5 {[%emt 0:00:00]} 21. b4 {[%emt 0:00:00]} Bd8 {[%emt 0:00:00]} 22. bxa5 {[%emt 0:00:00]} Bxc7 {[%emt 0:00:00]} 23. Rfd1 {[%emt 0:00:00]} Be4 {[%emt 0:00:00]} 24. Rac1 {[%emt 0:00:00]} Bxa5 {[%emt 0:00:00]} 25. Rxd6 {[%emt 0:00:00]} Bxf5 {[%emt 0:00:00]} 26. Rd5 {[%emt 0:00:00]} Bb4 {[%emt 0:00:00]} 27. Rcd1 {[%emt 0:00:00]} Nf6 {[%emt 0:00:00]} 28. Rxe5 {[%emt 0:00:00]} Be6 {[%emt 0:00:00]} 29. Rb5 {[%emt 0:00:00]} Ba3 {[%emt 0:00:00]} 30. Ra5 {[%emt 0:00:00]} Bb4 {[%emt 0:00:00]} 31. Ra4 {[%emt 0:00:00]} Nd5 {[%emt 0:00:00]} 32. Rxd5 {[%emt 0:00:00]} Bxd5 {[%emt 0:00:00]} 33. Rxb4 {[%emt 0:00:00]} Bxa2 {[%emt 0:00:00]} 34. Bf4 {[%emt 0:00:00]} Re8 {[%emt 0:00:00]} 35. Kf2 {[%emt 0:00:00]} h6 {[%emt 0:00:00]} 36. Rb8 {[%emt 0:00:00]} Rxb8 {[%emt 0:00:00]} 37. Bxb8 {[%emt 0:00:00]} f6 {[%emt 0:00:00]} 38. Ke3 {[%emt 0:00:00]} Kf7 {[%emt 0:00:00]} 39. Kd4 {[%emt 0:00:00]} Kg6 {[%emt 0:00:00]} 40. Bc4 {[%emt 0:00:00]} Bxc4 {[%emt 0:00:00]} 41. Kxc4 {[%emt 0:00:00]} Kf5 {[%emt 0:00:00]} 42. Kd4 {[%emt 0:00:00]} Kg4 {[%emt 0:00:00]} 43. h3+ {[%emt 0:00:00]} Kh4 {[%emt 0:00:00]} 44. Ke4 {[%emt 0:00:00]} g5 {[%emt 0:00:00]} 45. Kf5 {[%emt 0:00:00]} h5 {[%emt 0:00:00]} 46. g4 {[%emt 0:00:00]} hxg4 {[%emt 0:00:00]} 47. hxg4 {[%emt 0:00:00]} Kh3 {[%emt 0:00:00]} 48. Bc7 {[%emt 0:00:00]} Kh4 {[%emt 0:00:00]} 49. Bd8 {[%emt 0:00:00]} 1-0

[Event "4NCL Div 1 2018-19"]
[Site "Daventry"]
[Date "2019.01.12"]
[Round "3"]
[White "Taylor, Adam C"]
[Black "Morrison, Graham"]
[Result "1-0"]
[ECO "E08"]
[WhiteElo "2356"]
[BlackElo "2292"]
[Annotator "NA"]
[PlyCount "97"]
[EventDate "2019.01.12"]
[EventCountry "GBR"]
[SourceTitle "playchess.com"]
[Source "ChessBase"]
[SourceQuality "1"]
[TimeControl "40"]

1. Nf3 {[%emt 0:00:00]} Nf6 {[%emt 0:00:00]} 2. g3 {[%emt 0:00:00]} d5 {[%emt 0:00:00]} 3. Bg2 {[%emt 0:00:00]} e6 {[%emt 0:00:00]} 4. O-O {[%emt 0:00:00]} Be7 {[%emt 0:00:00]} 5. c4 {[%emt 0:00:00]} O-O {[%emt 0:00:00]} 6. d4 {[%emt 0:00:00]} c6 {[%emt 0:00:00]} 7. Qc2 {[%emt 0:00:00]} b6 {[%emt 0:00:00]} 8. b3 {[%emt 0:00:00]} Bb7 {[%emt 0:00:00]} 9. Rd1 {[%emt 0:00:00]} Nbd7 {[%emt 0:00:00]} 10. Nc3 {[%emt 0:00:00]} Qc8 {[%emt 0:00:00]} 11. Bf4 {[%emt 0:00:00]} b5 {[%emt 0:00:00]} 12. Rac1 {[%emt 0:00:00]} Ba3 {[%emt 0:00:00]} 13. Rb1 {[%emt 0:00:00]} Be7 {[%emt 0:00:00]} 14. Ne1 {[%emt 0:00:00]} bxc4 {[%emt 0:00:00]} 15. bxc4 {[%emt 0:00:00]} Nh5 {[%emt 0:00:00]} 16. cxd5 {[%emt 0:00:00]} cxd5 {[%emt 0:00:00]} 17. Bc7 {[%emt 0:00:00]} Nhf6 {[%emt 0:00:00]} 18. Rdc1 {[%emt 0:00:00]} Ba6 {[%emt 0:00:00]} 19. Nb5 {[%emt 0:00:00]} Bxb5 {[%emt 0:00:00]} 20. Rxb5 {[%emt 0:00:00]} a6 {[%emt 0:00:00]} 21. Rb3 {[%emt 0:00:00]} Ra7 {[%emt 0:00:00]} 22. Nd3 {[%emt 0:00:00]} Qa8 {[%emt 0:00:00]} 23. Ba5 {[%emt 0:00:00]} Rb7 {[%emt 0:00:00]} 24. e3 {[%emt 0:00:00]} Rb5 {[%emt 0:00:00]} 25. Be1 {[%emt 0:00:00]} Qb7 {[%emt 0:00:00]} 26. Bf1 {[%emt 0:00:00]} Rxb3 {[%emt 0:00:00]} 27. axb3 {[%emt 0:00:00]} Rb8 {[%emt 0:00:00]} 28. Nc5 {[%emt 0:00:00]} Nxc5 {[%emt 0:00:00]} 29. dxc5 {[%emt 0:00:00]} Qc6 {[%emt 0:00:00]} 30. b4 {[%emt 0:00:00]} Ne8 {[%emt 0:00:00]} 31. Bd3 {[%emt 0:00:00]} f5 {[%emt 0:00:00]} 32. g4 {[%emt 0:00:00]} g6 {[%emt 0:00:00]} 33. Ra1 {[%emt 0:00:00]} Nc7 {[%emt 0:00:00]} 34. Bc3 {[%emt 0:00:00]} Kf7 {[%emt 0:00:00]} 35. Qe2 {[%emt 0:00:00]} Bf6 {[%emt 0:00:00]} 36. Bxf6 {[%emt 0:00:00]} Kxf6 {[%emt 0:00:00]} 37. Qb2+ {[%emt 0:00:00]} Kf7 {[%emt 0:00:00]} 38. g5 {[%emt 0:00:00]} Kg8 {[%emt 0:00:00]} 39. Qe5 {[%emt 0:00:00]} Rd8 {[%emt 0:00:00]} 40. Bxa6 {[%emt 0:00:00]} Nxa6 {[%emt 0:00:00]} 41. b5 {[%emt 0:00:00]} Qxb5 {[%emt 0:00:00]} 42. Qxe6+ {[%emt 0:00:00]} Kf8 {[%emt 0:00:00]} 43. Qf6+ {[%emt 0:00:00]} Ke8 {[%emt 0:00:00]} 44. Rxa6 {[%emt 0:00:00]} Qb1+ {[%emt 0:00:00]} 45. Kg2 {[%emt 0:00:00]} Qe4+ {[%emt 0:00:00]} 46. f3 {[%emt 0:00:00]} Qc2+ {[%emt 0:00:00]} 47. Kh3 {[%emt 0:00:00]} Qxc5 {[%emt 0:00:00]} 48. Rc6 {[%emt 0:00:00]} Qf8 {[%emt 0:00:00]} 49. Qe5+ {[%emt 0:00:00]} 1-0

[Event "4NCL Div 1 2018-19"]
[Site "Daventry"]
[Date "2019.01.12"]
[Round "3"]
[White "Ledger, Andrew J"]
[Black "Kalavannan, Koby"]
[Result "1/2-1/2"]
[ECO "E62"]
[WhiteElo "2348"]
[BlackElo "2339"]
[Annotator "NA"]
[PlyCount "107"]
[EventDate "2019.01.12"]
[EventCountry "GBR"]
[SourceTitle "playchess.com"]
[Source "ChessBase"]
[SourceQuality "1"]
[TimeControl "40"]

1. d4 {[%emt 0:00:00]} Nf6 {[%emt 0:00:00]} 2. Nf3 {[%emt 0:00:00]} g6 {[%emt 0:00:00]} 3. c4 {[%emt 0:00:00]} Bg7 {[%emt 0:00:00]} 4. g3 {[%emt 0:00:00]} O-O {[%emt 0:00:00]} 5. Bg2 {[%emt 0:00:00]} d6 {[%emt 0:00:00]} 6. O-O {[%emt 0:00:00]} Nc6 {[%emt 0:00:00]} 7. Nc3 {[%emt 0:00:00]} e5 {[%emt 0:00:00]} 8. dxe5 {[%emt 0:00:00]} dxe5 {[%emt 0:00:00]} 9. Bg5 {[%emt 0:00:00]} Be6 {[%emt 0:00:00]} 10. Qc1 {[%emt 0:00:00]} Bxc4 {[%emt 0:00:00]} 11. Nd2 {[%emt 0:00:00]} Be6 {[%emt 0:00:00]} 12. Nde4 {[%emt 0:00:00]} h6 {[%emt 0:00:00]} 13. Bxf6 {[%emt 0:00:00]} Bxf6 {[%emt 0:00:00]} 14. Rd1 {[%emt 0:00:00]} Qe7 {[%emt 0:00:00]} 15. Nxf6+ {[%emt 0:00:00]} Qxf6 {[%emt 0:00:00]} 16. Qxh6 {[%emt 0:00:00]} Qg7 {[%emt 0:00:00]} 17. Qxg7+ {[%emt 0:00:00]} Kxg7 {[%emt 0:00:00]} 18. Ne4 {[%emt 0:00:00]} Rad8 {[%emt 0:00:00]} 19. Nc5 {[%emt 0:00:00]} Bg4 {[%emt 0:00:00]} 20. Rxd8 {[%emt 0:00:00]} Nxd8 {[%emt 0:00:00]} 21. Nxb7 {[%emt 0:00:00]} Nxb7 {[%emt 0:00:00]} 22. Bxb7 {[%emt 0:00:00]} Rb8 {[%emt 0:00:00]} 23. Bd5 {[%emt 0:00:00]} Rxb2 {[%emt 0:00:00]} 24. Rc1 {[%emt 0:00:00]} Rxe2 {[%emt 0:00:00]} 25. Rxc7 {[%emt 0:00:00]} Bh3 {[%emt 0:00:00]} 26. f4 {[%emt 0:00:00]} e4 {[%emt 0:00:00]} 27. Rxf7+ {[%emt 0:00:00]} Kh6 {[%emt 0:00:00]} 28. Rf8 {[%emt 0:00:00]} Rg2+ {[%emt 0:00:00]} 29. Kh1 {[%emt 0:00:00]} Rd2 {[%emt 0:00:00]} 30. Rh8+ {[%emt 0:00:00]} Kg7 {[%emt 0:00:00]} 31. Rxh3 {[%emt 0:00:00]} Rxd5 {[%emt 0:00:00]} 32. g4 {[%emt 0:00:00]} Rd1+ {[%emt 0:00:00]} 33. Kg2 {[%emt 0:00:00]} Rd2+ {[%emt 0:00:00]} 34. Kg1 {[%emt 0:00:00]} Rxa2 {[%emt 0:00:00]} 35. Re3 {[%emt 0:00:00]} Ra4 {[%emt 0:00:00]} 36. Kf2 {[%emt 0:00:00]} Kf6 {[%emt 0:00:00]} 37. Rc3 {[%emt 0:00:00]} Ke6 {[%emt 0:00:00]} 38. Rc5 {[%emt 0:00:00]} Kd6 {[%emt 0:00:00]} 39. Rg5 {[%emt 0:00:00]} Ra3 {[%emt 0:00:00]} 40. Ke2 {[%emt 0:00:00]} a5 {[%emt 0:00:00]} 41. Rxg6+ {[%emt 0:00:00]} Kd5 {[%emt 0:00:00]} 42. f5 {[%emt 0:00:00]} Kd4 {[%emt 0:00:00]} 43. Rd6+ {[%emt 0:00:00]} Ke5 {[%emt 0:00:00]} 44. Re6+ {[%emt 0:00:00]} Kf4 {[%emt 0:00:00]} 45. f6 {[%emt 0:00:00]} Ra2+ {[%emt 0:00:00]} 46. Kd1 {[%emt 0:00:00]} Ra1+ {[%emt 0:00:00]} 47. Kc2 {[%emt 0:00:00]} Rf1 {[%emt 0:00:00]} 48. h3 {[%emt 0:00:00]} a4 {[%emt 0:00:00]} 49. f7 {[%emt 0:00:00]} Kg5 {[%emt 0:00:00]} 50. Rxe4 {[%emt 0:00:00]} Rxf7 {[%emt 0:00:00]} 51. Re5+ {[%emt 0:00:00]} Kg6 {[%emt 0:00:00]} 52. h4 {[%emt 0:00:00]} Rf4 {[%emt 0:00:00]} 53. h5+ {[%emt 0:00:00]} Kf6 {[%emt 0:00:00]} 54. Rf5+ {[%emt 0:00:00]} 1/2-1/2

[Event "4NCL Div 1 2018-19"]
[Site "Daventry"]
[Date "2019.01.12"]
[Round "3"]
[White "Ashton, Adam G"]
[Black "Kulon, Klaudia"]
[Result "0-1"]
[ECO "C55"]
[WhiteElo "2332"]
[BlackElo "2327"]
[Annotator "NA"]
[PlyCount "78"]
[EventDate "2019.01.12"]
[EventCountry "GBR"]
[SourceTitle "playchess.com"]
[Source "ChessBase"]
[SourceQuality "1"]
[TimeControl "40"]

1. e4 {[%emt 0:00:00]} e5 {[%emt 0:00:00]} 2. Nf3 {[%emt 0:00:00]} Nc6 {[%emt 0:00:00]} 3. Bc4 {[%emt 0:00:00]} Nf6 {[%emt 0:00:00]} 4. d3 {[%emt 0:00:00]} h6 {[%emt 0:00:00]} 5. c3 {[%emt 0:00:00]} d6 {[%emt 0:00:00]} 6. Bb3 {[%emt 0:00:00]} g6 {[%emt 0:00:00]} 7. Nbd2 {[%emt 0:00:00]} Bg7 {[%emt 0:00:00]} 8. Nf1 {[%emt 0:00:00]} O-O {[%emt 0:00:00]} 9. Ne3 {[%emt 0:00:00]} Na5 {[%emt 0:00:00]} 10. Bc2 {[%emt 0:05:49]} c5 {[%emt 0:00:00]} 11. a3 {[%emt 0:00:00]} Nc6 {[%emt 0:00:00]} 12. b4 {[%emt 0:00:00]} cxb4 {[%emt 0:00:00]} 13. axb4 {[%emt 0:00:00]} d5 {[%emt 0:00:00]} 14. b5 {[%emt 0:00:00]} Ne7 {[%emt 0:00:00]} 15. O-O {[%emt 0:00:00]} Be6 {[%emt 0:00:00]} 16. Ba3 {[%emt 0:00:00]} d4 {[%emt 0:00:00]} 17. cxd4 {[%emt 0:00:00]} exd4 {[%emt 0:00:00]} 18. Nxd4 {[%emt 0:00:00]} Qxd4 {[%emt 0:00:00]} 19. Bxe7 {[%emt 0:00:00]} Rfc8 {[%emt 0:00:00]} 20. Rb1 {[%emt 0:00:00]} Ng4 {[%emt 0:00:00]} 21. Nxg4 {[%emt 0:00:00]} Bxg4 {[%emt 0:00:00]} 22. Qxg4 {[%emt 0:00:00]} Rxc2 {[%emt 0:00:00]} 23. Qf3 {[%emt 0:00:00]} Rac8 {[%emt 0:00:00]} 24. g3 {[%emt 0:00:00]} Qb6 {[%emt 0:00:00]} 25. Qf4 {[%emt 0:00:00]} R8c3 {[%emt 0:00:00]} 26. Rbd1 {[%emt 0:00:00]} g5 {[%emt 0:00:00]} 27. Qf5 {[%emt 0:02:36]} Bd4 {[%emt 0:00:00]} 28. e5 {[%emt 0:00:00]} Rb2 {[%emt 0:00:00]} 29. Bf6 {[%emt 0:00:00]} Rcc2 {[%emt 0:00:00]} 30. Rd2 {[%emt 0:00:00]} Qe6 {[%emt 0:00:00]} 31. Qxe6 {[%emt 0:00:00]} fxe6 {[%emt 0:00:00]} 32. Rxc2 {[%emt 0:00:00]} Rxc2 {[%emt 0:00:00]} 33. Kg2 {[%emt 0:00:00]} a5 {[%emt 0:00:00]} 34. bxa6 {[%emt 0:00:00]} bxa6 {[%emt 0:00:00]} 35. Kf3 {[%emt 0:00:00]} a5 {[%emt 0:00:00]} 36. h4 {[%emt 0:00:00]} a4 {[%emt 0:00:00]} 37. hxg5 {[%emt 0:00:00]} a3 {[%emt 0:00:00]} 38. Ke4 {[%emt 0:00:00]} Bb2 {[%emt 0:00:00]} 39. gxh6 {[%emt 0:00:00]} a2 {[%emt 0:00:00]} 0-1